[Event "VII Totalizator Sportowy 2022"]
[Site "Bydgoszcz"]
[Date "2022.07.01"]
[Round "7.5"]
[White "Malek, Jan"]
[Black "Janik, Igor"]
[Result "0-1"]
[ECO "B11"]
[WhiteElo "2316"]
[BlackElo "2525"]
[Annotator "TA"]
[PlyCount "140"]
[EventDate "2022.06.25"]
[EventType "swiss"]
[EventCountry "POL"]
[SourceTitle "playchess.com"]
[Source "ChessBase"]
[SourceQuality "1"]
[TimeControl "40/5400+30:1800+30"]

{[%evp 12,140,7,8,28,26,15,28,29,0,0,-20,7,-12,17,-63,-64,-59,-57,-58,-14,-16,-16,-37,-43,-31,-41,-56,-47,-58,-52,-39,-31,-31,-41,-44,-17,-20,-19,-9,-9,-9,-9,-21,-29,-24,-9,-28,-22,-23,-23,-23,-23,-29,-31,-25,-27,-26,-18,-31,-30,-27,-10,-61,-64,-59,-59,-73,-53,-66,-27,-27,-22,-75,-72,-147,-150,-134,-83,-83,-29,-29,-21,-102,-102,-207,-118,-108,-66,-54,-75,-75,-83,-86,-85,-154,-156,-124,-110,-161,-157,-175,-168,-160,-160,-170,-152,-142,-152,-260,-249,-266,-272,-257,-252,-243,-229,-679,-666,-1079,-1008,-1716,-1366,-5493,-5456,-2316,-665,-915,-877,-592,-514]} 1. e4 {[%emt 0:00:03]} c6 {[%emt 0:00:06]} 2. Nf3 {[%emt 0:00:07]} d5 {[%emt 0:00:07]} 3. Nc3 {[%emt 0:00:06]} Bg4 {[%emt 0:00:07]} 4. h3 {[%emt 0:00:06]} Bxf3 {[%emt 0:00:05]} 5. Qxf3 {[%emt 0:00:06]} e6 {[%emt 0:00:04]} 6. d3 {[%emt 0:00:10]} Nd7 {[%emt 0:00:47]} 7. Be2 {[%emt 0:10:30] outshines the older 7.Bd2.} Ngf6 {[%emt 0:00:50] B11: Caro-Kann: Two Knights Variation.} 8. O-O {[%emt 0:02:47]} Bc5 {[%emt 0:00:25]} 9. Qg3 {[%emt 0:01:51]} O-O {[%emt 0:00:16] White has an edge.} 10. Kh1 {[%emt 0:06:24]} Bd4 {[%emt 0:01:09] [#]} 11. Bd2 $146 {[%emt 0:05:41]} ({Predecessor:} 11. Bh6 Ne8 12. Bg5 Bf6 13. Bc1 Qa5 14. Nb1 Qa4 15. c3 dxe4 16. Qf4 Nc5 17. d4 {0-1 (41) Mastrovasilis,D (2610)-Dreev,A (2654) Legnica 2013}) 11... b5 {[%emt 0:04:52]} 12. Rae1 {[%emt 0:06:02]} Qb8 {[%emt 0:08:11]} 13. Qh4 {[%emt 0:04:33]} (13. Bf4 $11 Qb6 14. e5) 13... dxe4 $15 {[%emt 0:14:16]} 14. dxe4 {[%emt 0:00:26]} Ne5 {[%emt 0:00:41][%cal Bd7e5,Be5g6,Bg6h4][%mdl 32]} 15. Bf4 {[%emt 0:10:18]} Ng6 {[%emt 0:01:18]} 16. Bxb8 {[%emt 0:01:12] This bishop pair is nice.} Nxh4 {[%emt 0:00:16]} 17. Bg3 {[%emt 0:01:59]} Ng6 {[%emt 0:00:28]} 18. Bd3 {[%emt 0:04:00]} e5 {[%emt 0:00:49]} 19. Bh2 {[%emt 0:14:55]} Rfd8 {[%emt 0:03:13]} 20. Rb1 {[%emt 0:00:32]} Nd7 {[%emt 0:01:27][%cal Bf6d7,Bd7f8,Bf8e6,Be6d4][%mdl 32]} 21. Ne2 {[%emt 0:01:38]} Bb6 {[%emt 0:00:07]} 22. b4 {[%emt 0:02:22] Inhibits Nc5.} a5 {[%emt 0:02:58] ...axb4 is the strong threat.} 23. a3 {[%emt 0:00:18]} axb4 {[%emt 0:03:54]} 24. axb4 {[%emt 0:00:03]} Ndf8 {[%emt 0:00:07]} 25. g3 {[%emt 0:03:03]} Ne6 {[%emt 0:01:08]} 26. f4 {[%emt 0:00:31] [#] Hoping for f5.} Nd4 {[%emt 0:00:18]} 27. Nc1 {[%emt 0:06:46]} Ra3 {[%emt 0:09:00]} 28. Bg1 {[%emt 0:00:23]} Bc7 {[%emt 0:11:10]} 29. Bxd4 {[%emt 0:11:17]} Rxd4 {[%emt 0:00:11]} 30. Ne2 {[%emt 0:00:03]} Rd8 {[%emt 0:00:16][%cal Bd4d8,Bd8a8,Ba8a3,Ba3e3][%mdl 32]} 31. f5 {[%emt 0:00:06]} Nf8 {[%emt 0:01:30]} 32. Ra1 {[%emt 0:00:06]} Rda8 {[%emt 0:00:30]} 33. Rxa3 {[%emt 0:00:05]} Rxa3 {[%emt 0:00:01]} 34. Rd1 {[%emt 0:01:18]} h5 {[%emt 0:00:54]} 35. c4 {[%emt 0:01:48]} bxc4 {[%emt 0:03:07]} 36. Bxc4 {[%emt 0:00:02]} Re3 {[%emt 0:02:19]} 37. Bd3 {[%emt 0:01:48]} (37. Rc1 $11) 37... Nh7 {[%emt 0:01:16]} 38. Kg2 {[%emt 0:00:33]} Nf6 {[%emt 0:00:16]} 39. Nc3 {[%emt 0:03:08]} Bb6 {[%emt 0:01:34]} 40. Rd2 {[%emt 0:00:00]} Kf8 {[%emt 0:00:00]} (40... Bd4 $5 {[%cal Rd4c3]} 41. Ne2 Bb6 $15) 41. Nd1 $1 {[%emt 0:02:29]} Re1 {[%emt 0:05:43]} 42. Kf3 {[%emt 0:00:22]} (42. Nc3 $1 $11) 42... Bd4 {[%emt 0:13:07]} 43. Be2 {[%emt 0:07:18] [#]} (43. h4 $142) 43... Rg1 $1 $17 {[%emt 0:02:21]} 44. Rd3 {[%emt 0:03:22]} Ke7 {[%emt 0:07:14] Black is more active.} (44... Rh1 $142 45. Ne3 h4) 45. Ne3 {[%emt 0:02:12]} Bxe3 {[%emt 0:06:06]} ({Black should play} 45... Rh1 $17 {Strongly threatening ...h4.} 46. Nc2 Bb6) 46. Rxe3 {[%emt 0:00:02][%mdl 4096] Endgame KRB-KRN} Rb1 {[%emt 0:00:12]} 47. Rc3 {[%emt 0:00:06]} (47. Ra3 $11) 47... Rxb4 {[%emt 0:02:23]} 48. Rxc6 {[%emt 0:01:15]} (48. Bd3 $17) 48... Nxe4 {[%emt 0:00:11]} (48... Rb3+ $19 49. Kg2 Nxe4 50. Bxh5 Rxg3+ 51. Kh2 Rg5) 49. Rc7+ {[%emt 0:00:17]} Kd8 {[%emt 0:02:24]} 50. Ra7 {[%emt 0:00:37]} Nd6 {[%emt 0:00:10]} 51. Kf2 {[%emt 0:05:41]} h4 {[%emt 0:01:31]} 52. gxh4 {[%emt 0:00:02]} Rf4+ {[%emt 0:02:08]} ({Reject} 52... Nxf5 $6 53. Rxf7 Nxh4 54. Rxg7 $11) 53. Kg2 {[%emt 0:00:52]} ({Better is} 53. Ke1) 53... Nxf5 {[%emt 0:01:13]} ({And not} 53... Rxh4 54. Bg4 $15) 54. h5 {[%emt 0:01:25]} Nd4 {[%emt 0:09:10]} 55. Bg4 {[%emt 0:00:13]} (55. Bd1 $17) 55... Ke8 $19 {[%emt 0:00:06]} 56. Kg3 {[%emt 0:02:42]} Nf5+ {[%emt 0:00:07]} 57. Kg2 {[%emt 0:00:58]} Kf8 {[%emt 0:01:52]} 58. Ra5 {[%emt 0:00:56]} f6 {[%emt 0:00:14]} 59. Ra8+ {[%emt 0:01:43]} Kf7 {[%emt 0:00:01]} 60. Be2 {[%emt 0:00:31]} (60. Kh2 $17) 60... Rb4 {[%emt 0:01:01]} 61. Bg4 {[%emt 0:00:30]} Rb2+ {[%emt 0:01:35]} 62. Kf3 {[%emt 0:00:26]} Rb3+ {[%emt 0:00:31]} 63. Kf2 {[%emt 0:02:06]} Nd4 {[%emt 0:00:08]} 64. Kg2 $2 {[%emt 0:02:22]} (64. Ra5) 64... f5 {[%emt 0:01:57] Black is clearly winning.} 65. Ra7+ {[%emt 0:00:01]} Kf6 {[%emt 0:00:27]} 66. Bd1 {[%emt 0:01:55]} Rb2+ {[%emt 0:00:16]} 67. Kf1 {[%emt 0:00:01]} e4 {[%emt 0:02:39] Threatens to win with ...Rb1.} 68. Rd7 {[%emt 0:00:16]} Ne6 {[%emt 0:00:34]} (68... Rd2 $142 69. Be2 Rxe2 70. Rxd4 Rh2) 69. Be2 {[%emt 0:00:41]} Nf4 {[%emt 0:00:14][%csl LRe2,LRh3]} 70. Bc4 {[%emt 0:00:06]} Nxh5 {[%emt 0:00:10] Weighted Error Value: White=0.19 (very precise) /Black=0.09 (flawless)} 0-1

[Event "VII Totalizator Sportowy 2022"]
[Site "Bydgoszcz"]
[Date "2022.07.01"]
[Round "7.6"]
[White "Kosakowski, Jakub"]
[Black "Maksimenko, Andrei"]
[Result "1/2-1/2"]
[ECO "C02"]
[WhiteElo "2435"]
[BlackElo "2434"]
[Annotator "TA"]
[PlyCount "102"]
[EventDate "2022.06.25"]
[EventType "swiss"]
[EventCountry "POL"]
[SourceTitle "playchess.com"]
[Source "ChessBase"]
[SourceQuality "1"]
[TimeControl "40/5400+30:1800+30"]

{[%evp 17,102,-10,28,14,25,13,22,7,4,0,0,0,0,0,0,0,0,0,0,0,0,0,0,0,0,0,0,0,0,0,29,29,23,24,22,22,24,22,22,-15,22,22,22,22,22,13,13,13,13,21,20,16,18,0,0,0,0,0,8,8,71,0,0,0,0,0,0,0,0,0,0,0,0,0,0,0,0,0,0,0,0,0,0,0,0,0,0]} 1. e4 {[%emt 0:00:05]} e6 {[%emt 0:00:07]} 2. d4 {[%emt 0:00:30]} d5 {[%emt 0:00:05]} 3. e5 {[%emt 0:01:46]} c5 {[%emt 0:00:05]} 4. c3 {[%emt 0:00:11]} Nc6 {[%emt 0:00:07]} 5. Nf3 {[%emt 0:00:10]} Bd7 {[%emt 0:00:17]} 6. Be2 {[%emt 0:01:26]} Nh6 {[%emt 0:03:13]} 7. Na3 {[%emt 0:05:30]} cxd4 {[%emt 0:02:57]} 8. cxd4 {[%emt 0:00:53]} Nf5 {[%emt 0:04:49]} 9. Nc2 {[%emt 0:06:50]} Nb4 {[%emt 0:01:53]} 10. Bd2 {[%emt 0:11:36] C02: French: Advance Variation.} Nxc2+ {[%emt 0:08:51]} 11. Qxc2 {[%emt 0:00:14]} Qb6 {[%emt 0:02:52]} 12. Bc3 {[%emt 0:01:46] [#]} Bb5 $146 {[%emt 0:09:25]} ({Predecessor:} 12... Rc8 13. Qd2 Bb5 14. a3 Be7 15. O-O O-O 16. Rfe1 Bxe2 17. Rxe2 Qb3 18. Rc1 Rc6 {0-1 (54) Chuquitarco Martinez,J (1327)-Garcia Ibarra,N (1573) Guayaquil 2019}) 13. O-O {[%emt 0:18:26]} Bxe2 {[%emt 0:02:34]} 14. Qxe2 {[%emt 0:01:03]} Bb4 {[%emt 0:00:12]} 15. Rac1 {[%emt 0:01:13]} O-O {[%emt 0:14:44]} 16. Qd2 {[%emt 0:01:44]} Bxc3 {[%emt 0:03:28]} 17. Rxc3 {[%emt 0:00:21]} Rfc8 {[%emt 0:04:47]} 18. Rfc1 {[%emt 0:09:42][%cal Bf1c1,Bc1c3,Bc3b3][%mdl 32]} Rxc3 {[%emt 0:02:44]} 19. Rxc3 {[%emt 0:00:20]} h6 {[%emt 0:00:55]} 20. h3 {[%emt 0:00:43]} Ne7 {[%emt 0:00:45][%cal Bf5e7,Be7c6,Bc6b4,Bb4d3][%mdl 32]} 21. Rb3 {[%emt 0:01:25]} Qc7 {[%emt 0:05:53]} 22. Qb4 {[%emt 0:00:57]} Qc1+ {[%emt 0:01:51]} 23. Kh2 {[%emt 0:02:52]} Nc6 {[%emt 0:02:18]} 24. Qxb7 {[%emt 0:03:16]} Rb8 {[%emt 0:00:09]} 25. Rc3 {[%emt 0:00:52]} Rxb7 {[%emt 0:06:05]} 26. Rxc1 $11 {[%emt 0:00:07][%mdl 4096] Endgame KRN-KRN} Nb4 {[%emt 0:00:03]} 27. a3 {[%emt 0:00:35]} Nd3 {[%emt 0:00:05][%csl LRb2,LRc1,LRf2]} 28. Rc8+ {[%emt 0:01:25]} Kh7 {[%emt 0:00:01]} 29. b4 {[%emt 0:00:25]} a5 {[%emt 0:07:15]} 30. bxa5 {[%emt 0:11:30] [#] Strongly threatening a6.} Ra7 {[%emt 0:02:46]} 31. Kg3 {[%emt 0:05:33]} Rxa5 {[%emt 0:00:07]} 32. Rc7 {[%emt 0:03:50]} Kg8 {[%emt 0:01:44]} 33. Rc3 {[%emt 0:00:44]} Nb2 {[%emt 0:00:07]} 34. Nd2 {[%emt 0:00:20]} Ra4 $1 {[%emt 0:04:34]} 35. Rb3 {[%emt 0:01:32]} Nc4 {[%emt 0:01:10]} 36. Nxc4 {[%emt 0:01:14]} Rxc4 {[%emt 0:00:15] KR-KR} 37. Rd3 {[%emt 0:00:08]} g5 {[%emt 0:05:18]} 38. h4 {[%emt 0:04:26]} Kg7 {[%emt 0:01:55] [#]} (38... gxh4+ $11 {remains equal.} 39. Kxh4 Kh7) 39. Kg4 {[%emt 0:03:18]} (39. h5 $1 $16) 39... Rc2 {[%emt 0:01:49] The position is equal.} 40. hxg5 {[%emt 0:00:00]} Rxf2 {[%emt 0:00:00]} 41. gxh6+ {[%emt 0:06:52]} Kxh6 {[%emt 0:01:28]} 42. Kg3 {[%emt 0:01:22]} Ra2 {[%emt 0:01:13]} 43. Kf4 {[%emt 0:00:16]} Rf2+ {[%emt 0:09:19]} 44. Rf3 {[%emt 0:01:20]} Re2 {[%emt 0:00:51]} 45. Rh3+ {[%emt 0:03:29]} Kg7 {[%emt 0:01:30]} 46. Rg3+ {[%emt 0:00:31]} Kf8 {[%emt 0:00:50]} 47. Kg5 {[%emt 0:01:53]} Rd2 {[%emt 0:01:08]} 48. Rg4 {[%emt 0:00:27]} Ke7 {[%emt 0:01:08]} 49. Kh6 {[%emt 0:04:14]} Ra2 {[%emt 0:09:48]} 50. Rg3 {[%emt 0:04:30]} Kf8 {[%emt 0:04:36]} 51. Kg5 {[%emt 0:06:56]} Ra1 {An interesting draw.  Weighted Error Value: White=0.04 (flawless) /Black=0.05 (flawless)} 1/2-1/2

[Event "VII Totalizator Sportowy 2022"]
[Site "Bydgoszcz"]
[Date "2022.07.01"]
[Round "7.8"]
[White "Golubka, Petro"]
[Black "Hnydiuk, Aleksander"]
[Result "1-0"]
[ECO "A11"]
[WhiteElo "2380"]
[BlackElo "2394"]
[Annotator "TA"]
[PlyCount "98"]
[EventDate "2022.06.25"]
[EventType "swiss"]
[EventCountry "POL"]
[SourceTitle "playchess.com"]
[Source "ChessBase"]
[SourceQuality "1"]
[TimeControl "40/5400+30:1800+30"]

{[%evp 9,98,-8,-12,-3,0,-11,-19,-11,-15,-6,0,0,9,12,9,0,2,-2,1,0,-10,-20,-9,-33,-7,-12,-14,-26,0,0,-5,0,0,0,-11,-10,-9,-19,-2,-16,14,0,5,10,23,22,86,87,183,156,202,213,375,203,197,212,212,201,232,232,225,225,225,225,560,560,550,542,535,535,535,520,520,513,491,477,444,330,633,632,614,613,768,750,637,606,946,885,4132,972,5687]} 1. c4 {[%emt 0:03:42]} c6 {[%emt 0:00:22]} 2. Qa4 {[%emt 0:00:37]} e5 {[%emt 0:07:48]} 3. Nc3 {[%emt 0:00:35]} Nf6 {[%emt 0:13:10]} 4. Nf3 {[%emt 0:01:01]} Bd6 {[%emt 0:03:35] [#]} 5. e4 $146 {[%emt 0:04:56]} ({Predecessor:} 5. Qc2 O-O 6. d4 exd4 7. Nxd4 Be5 8. Nf3 Bxc3+ 9. bxc3 d5 10. e3 Re8 11. Be2 {½-½ (47) Dvoirys,S (2538)-Raznikov,D (2489) Jerusalem 2013}) 5... O-O {[%emt 0:00:31]} 6. Be2 {[%emt 0:00:07] A11: English Opening: 1...c6.} Na6 {[%emt 0:04:51]} 7. O-O {[%emt 0:01:51]} Nc5 {[%emt 0:00:03][%csl LRa4,LRe4]} 8. Qc2 {[%emt 0:00:05] The position is equal.} Ne6 {[%emt 0:01:29] Inhibits d4.} 9. d3 {[%emt 0:00:08]} Qe7 {[%emt 0:16:56]} 10. a3 {[%emt 0:02:01]} a5 {[%emt 0:01:02]} 11. Be3 {[%emt 0:00:35]} Ng4 {[%emt 0:06:23]} 12. Bd2 {[%emt 0:03:44]} Bc5 {[%emt 0:01:17]} 13. Na4 {[%emt 0:01:06]} Ba7 {[%emt 0:01:08]} 14. h3 {[%emt 0:01:42]} (14. Rac1 {keeps more tension.} d6 15. b4 axb4 16. axb4 b5 17. cxb5 cxb5 18. Nc3) 14... Nf6 {[%emt 0:03:08]} 15. Be3 {[%emt 0:01:05]} ({Avoid the trap} 15. Nxe5 $2 Nd4 16. Qd1 Qxe5 $19) 15... d6 {[%emt 0:07:29]} 16. Rfe1 {[%emt 0:02:18]} Bd7 {[%emt 0:13:52]} 17. Bf1 {[%emt 0:03:05]} Bxe3 {[%emt 0:06:30]} 18. fxe3 {[%emt 0:00:15]} b5 {[%emt 0:01:35]} 19. cxb5 {[%emt 0:02:09]} cxb5 {[%emt 0:00:05]} 20. Nb6 {[%emt 0:00:11]} Rab8 {[%emt 0:01:10]} 21. Nxd7 {[%emt 0:00:27]} Qxd7 {[%emt 0:02:21]} 22. b4 {[%emt 0:02:36]} Rfc8 {[%emt 0:00:40]} 23. Qb2 {[%emt 0:00:20]} Qa7 {[%emt 0:01:24]} 24. Kh2 {[%emt 0:01:40]} Rc7 {[%emt 0:00:37]} 25. d4 {[%emt 0:02:51]} Nxe4 {[%emt 0:00:37]} 26. dxe5 {[%emt 0:00:20]} dxe5 {[%emt 0:03:41]} 27. Qxe5 {[%emt 0:01:07]} Nc3 {[%emt 0:01:37] [#]} (27... Nf6 $11) 28. Nd4 $1 $16 {[%emt 0:01:00] White now steadily converts the win.} Nxd4 {[%emt 0:00:34]} (28... Rb6 $16) 29. exd4 $18 {[%emt 0:00:18][%cal Oe5e8] Intending Qe8+! and mate.} Rcc8 {[%emt 0:00:05] [#] Inhibits Qe8+.} (29... f6 $16 30. Qe6+ Rf7) 30. d5 $1 {[%emt 0:00:35] Threatens to win with Rac1.} Qd7 $2 {[%emt 0:00:41]} (30... f6 {was necessary.} 31. Qe6+ Qf7) 31. bxa5 {[%emt 0:00:29]} (31. d6 $142) 31... Qxd5 {[%emt 0:00:25]} 32. Rac1 {[%emt 0:02:07]} Qxe5+ {[%emt 0:00:33]} 33. Rxe5 {[%emt 0:00:02] And now a6 would win.} g6 {[%emt 0:00:14]} 34. Re3 {[%emt 0:02:28]} Nd5 {[%emt 0:00:27]} 35. Rxc8+ {[%emt 0:00:13]} ({Weaker is} 35. Ree1 Rxc1 36. Rxc1 Ra8 $14) 35... Rxc8 {[%emt 0:00:02][%mdl 4096] Endgame KRB-KRN} 36. Rb3 {[%emt 0:00:17]} Nc3 {[%emt 0:01:35]} (36... Kg7 {is a better chance.} 37. Rxb5 (37. Bxb5 Ra8 $16) 37... Ne3) 37. a6 {[%emt 0:00:21]} Ne4 {[%emt 0:00:23]} 38. Bxb5 {[%emt 0:00:27]} Nd6 {[%emt 0:00:37]} 39. Be2 {[%emt 0:02:07] Black must now prevent a7.} Ra8 {[%emt 0:00:13]} 40. Rb6 {[%emt 0:00:00]} Nc8 {[%emt 0:00:00]} 41. Rb7 {[%emt 0:00:16]} Kg7 {[%emt 0:00:44]} 42. a4 {[%emt 0:00:23]} Kf6 {[%emt 0:00:25]} 43. a5 {[%emt 0:00:20]} Ke6 $2 {[%emt 0:00:18]} (43... Nd6 44. Kg3 h6) 44. Bc4+ {[%emt 0:00:19] White is clearly winning.} Ke5 {[%emt 0:00:01]} 45. Rxf7 {[%emt 0:00:42]} Nd6 {[%emt 0:00:15]} 46. Re7+ {[%emt 0:00:07]} Kd4 {[%emt 0:00:05]} 47. Be2 {[%emt 0:00:12]} Kc5 {[%emt 0:00:46]} 48. a7 {[%emt 0:00:18] aiming for Bf3.} Nc8 {[%emt 0:00:24]} 49. Re8 {[%emt 0:00:14]} (49. Rc7+ $142 Kb4 50. Bf3 Rxa7 51. Rxc8) 49... Kd5 {Weighted Error Value: White=0.11 (very precise) /Black=0.31} 1-0

[Event "VII Totalizator Sportowy 2022"]
[Site "Bydgoszcz"]
[Date "2022.07.01"]
[Round "7.9"]
[White "Sieciechowicz, Marcin"]
[Black "Prokofiev, Valentyn"]
[Result "1/2-1/2"]
[ECO "E83"]
[WhiteElo "2388"]
[BlackElo "2362"]
[Annotator "TA"]
[PlyCount "96"]
[EventDate "2022.06.25"]
[EventType "swiss"]
[EventCountry "POL"]
[SourceTitle "playchess.com"]
[Source "ChessBase"]
[SourceQuality "1"]
[TimeControl "40/5400+30:1800+30"]

{[%evp 14,96,41,42,37,40,66,36,31,38,58,28,70,60,99,106,125,115,102,98,107,58,79,29,142,153,141,73,84,37,37,37,37,35,41,40,40,35,36,32,32,39,35,35,35,12,32,27,46,34,61,45,39,44,51,0,6,10,23,24,28,0,0,0,0,0,0,0,0,-30,-29,-28,-26,-27,-15,-27,0,-18,-15,-15,-12,-12,-12,-12,-12]} 1. d4 {[%emt 0:00:09]} Nf6 {[%emt 0:00:03]} 2. c4 {[%emt 0:00:06]} g6 {[%emt 0:00:03]} 3. Nc3 {[%emt 0:00:04]} Bg7 {[%emt 0:00:03]} 4. e4 {[%emt 0:00:04]} d6 {[%emt 0:00:02]} 5. f3 {[%emt 0:00:13]} O-O {[%emt 0:00:18]} 6. Be3 {[%emt 0:00:05]} Nc6 {[%emt 0:00:03]} 7. Nge2 {[%emt 0:00:26]} a6 {[%emt 0:00:08]} 8. Qd2 {[%emt 0:01:35]} Na5 {[%emt 0:00:04] E83: King's Indian: Sämisch Panno (6...Nc6): Lines without either Nge2 or Qd2.} 9. Nc1 {[%emt 0:05:24]} Bd7 {[%emt 0:03:59]} 10. Nb3 {[%emt 0:05:41]} Nxb3 {[%emt 0:04:54] White is slightly better.} 11. axb3 {[%emt 0:00:02]} b5 {[%emt 0:01:44] [#]} 12. Bd3 $146 {[%emt 0:04:02]} ({Predecessor:} 12. Be2 e5 13. d5 c5 14. dxc6 Bxc6 15. O-O b4 16. Na4 Nh5 17. Rfd1 Qh4 18. Bg5 {1-0 (18) Livaic,L (2507)-Efimenko,Z (2602) Chess.com INT 2020}) 12... Qb8 {[%emt 0:01:19]} 13. O-O {[%emt 0:04:58]} Qb7 {[%emt 0:02:23]} 14. e5 {[%emt 0:10:48]} Ne8 {[%emt 0:01:35] [#]} 15. Nd5 $1 {[%emt 0:04:05]} e6 {[%emt 0:01:36]} 16. Ne7+ {[%emt 0:02:59]} Kh8 {[%emt 0:00:03]} 17. Be4 {[%emt 0:01:21]} (17. Rfd1 $16) 17... c6 $14 {[%emt 0:02:32]} 18. d5 {[%emt 0:02:00] White is much more active.} (18. cxb5 $16 Qxb5 19. Rfc1) 18... exd5 (18... cxd5 $11 {remains equal.} 19. cxd5 f5 20. dxe6 fxe4 21. exd7 Qxd7) 19. cxd5 $16 {[%emt 0:00:18]} c5 {[%emt 0:01:01]} 20. Bxc5 {[%emt 0:18:26]} Bxe5 {[%emt 0:04:16] [#] White must now prevent ...f5.} 21. Bd4 {[%emt 0:01:06]} ({Better is} 21. f4 $16 Bg7 22. Bd4) 21... f5 $14 {[%emt 0:06:46]} 22. f4 {[%emt 0:02:44]} Bxd4+ {[%emt 0:02:53]} 23. Qxd4+ {[%emt 0:00:07]} Nf6 {[%emt 0:00:03]} 24. Bf3 {[%emt 0:00:40]} Qa7 {[%emt 0:00:24]} 25. Qxa7 {[%emt 0:01:31]} Rxa7 {[%emt 0:00:03]} 26. Rfc1 {[%emt 0:04:20]} Re8 {[%emt 0:03:00]} 27. Nc6 {[%emt 0:00:46]} Raa8 {[%emt 0:00:09]} 28. b4 {[%emt 0:02:36]} Kg7 {[%emt 0:03:31]} 29. Ra3 {[%emt 0:01:35][%cal Ba1a3,Ba3c3,Bc3c6][%mdl 32]} Kf7 {[%emt 0:01:31]} 30. Nd4 {[%emt 0:03:35]} Ra7 {[%emt 0:01:45]} 31. Rac3 {[%emt 0:02:05]} Rb8 {[%emt 0:04:49]} 32. Nc6 {[%emt 0:02:12]} (32. Kf2 {with more complications.} Re8 33. Rc7 Rea8 34. R1c6) 32... Bxc6 {[%emt 0:02:56]} 33. Rxc6 {[%emt 0:00:09]} Ne8 {[%emt 0:00:19]} 34. g4 {[%emt 0:03:13]} fxg4 {[%emt 0:04:01]} 35. Bxg4 {[%emt 0:00:04]} Rd8 {[%emt 0:00:17]} 36. Kf2 {[%emt 0:04:13]} a5 {[%emt 0:02:33]} 37. Rb6 {[%emt 0:01:24]} axb4 {[%emt 0:00:47]} 38. Rxb5 {[%emt 0:02:12]} Nc7 {[%emt 0:00:04]} 39. Rxb4 {[%emt 0:00:10]} Nxd5 {[%emt 0:00:05]} 40. Rd4 {[%emt 0:00:00]} Ne7 {[%emt 0:00:00]} 41. Re4 {[%emt 0:03:41]} Rb8 {[%emt 0:01:59]} 42. Re2 {[%emt 0:00:24]} Rb4 {[%emt 0:02:45]} 43. Kg3 {[%emt 0:03:43]} Rb3+ {[%emt 0:02:00]} 44. Kg2 {[%emt 0:00:20] Strongly threatening Be6+.} Rb4 {[%emt 0:00:06]} 45. Rd1 {[%emt 0:04:41] The position is equal.} d5 {[%emt 0:02:09]} 46. Be6+ {[%emt 0:01:00]} Kg7 {[%emt 0:01:27]} 47. Bxd5 {[%emt 0:00:40]} Nxd5 {[%emt 0:00:07]} 48. Rxd5 {[%emt 0:00:01]} Rxf4 {[%emt 0:00:07] Weighted Error Value: White=0.13 (very precise) /Black=0.14 (very precise)} 1/2-1/2

[Event "VII Totalizator Sportowy 2022"]
[Site "Bydgoszcz"]
[Date "2022.07.01"]
[Round "7.10"]
[White "Chojnacki, Krzysztof"]
[Black "Skurniak, Szymon"]
[Result "1-0"]
[ECO "D85"]
[WhiteElo "2371"]
[BlackElo "1960"]
[Annotator "TA"]
[PlyCount "53"]
[EventDate "2022.06.25"]
[EventType "swiss"]
[EventCountry "POL"]
[SourceTitle "playchess.com"]
[Source "ChessBase"]
[SourceQuality "1"]
[TimeControl "40/5400+30:1800+30"]

{[%evp 11,53,30,28,0,0,5,1,0,25,6,25,22,89,86,89,93,96,81,155,150,164,151,137,144,172,173,216,164,183,143,258,255,266,241,225,217,362,352,337,299,305,313,5533,4914]} 1. d4 {[%emt 0:00:05]} Nf6 {[%emt 0:00:11]} 2. c4 {[%emt 0:00:09]} g6 {[%emt 0:00:08]} 3. Nc3 {[%emt 0:00:17]} d5 {[%emt 0:00:06]} 4. cxd5 {[%emt 0:00:35]} Nxd5 {[%emt 0:00:07]} 5. Bd2 {[%emt 0:00:17]} Nb6 {[%emt 0:01:36]} 6. Nf3 {[%emt 0:00:38]} Bg7 {[%emt 0:00:34]} 7. e3 {[%emt 0:00:41] D90: Grünfeld: 4 Nf3 Bg7 sidelines.} O-O {[%emt 0:00:30]} 8. h4 {[%emt 0:01:14]} h5 {[%emt 0:06:08]} 9. Ng5 {[%emt 0:01:57] The position is equal.} Nc6 {[%emt 0:04:23]} 10. f4 {[%emt 0:02:36] Prevents e5.} Bg4 {[%emt 0:12:39]} 11. Be2 {[%emt 0:06:40] [#]} Qd7 $146 {[%emt 0:09:20] [#]} (11... Bxe2 $1 $11 12. Qxe2 Qc8) ({Predecessor:} 11... Bxe2 12. Qxe2 Nb4 13. Rc1 a5 14. Nce4 Nxa2 15. Rc5 Na4 16. Rb5 Nb4 17. g4 c6 18. Rxb7 {1-0 (51) Petrosyan,M (2628)-Babujian,L (2455) Yerevan 2021}) 12. Bxg4 $1 $16 {[%emt 0:04:14]} Qxg4 13. Qxg4 {[%emt 0:00:11]} hxg4 {[%emt 0:02:04]} 14. h5 {[%emt 0:02:40]} Bh6 {[%emt 0:12:34]} (14... gxh5 $142 15. Rxh5 Rad8) 15. Nge4 {[%emt 0:08:42][%cal Bg5e4,Be4c5,Bc5b7][%mdl 32]} Kg7 {[%emt 0:03:33]} 16. hxg6 {[%emt 0:06:38]} f5 {[%emt 0:04:15] [#]} 17. Nc5 {[%emt 0:01:53] White is more active.} (17. d5 Nb4 18. Ke2 fxe4 $17) 17... Kxg6 {[%emt 0:04:21]} 18. Nxb7 {[%emt 0:02:26]} Nd7 {[%emt 0:02:08]} 19. Na4 {[%emt 0:03:09]} Rab8 {[%emt 0:03:54]} 20. Rc1 {[%emt 0:03:30][%cal Ba1c1,Bc1c7,Bc7e7][%mdl 32]} Rf6 {[%emt 0:05:31]} (20... Rxb7 $16 {is a better defense.} 21. Rxc6+ Rf6) 21. d5 $18 {[%emt 0:10:26]} Nd8 {[%emt 0:08:25]} 22. Nxd8 {[%emt 0:01:03]} Rxd8 {[%emt 0:00:01]} 23. Rxc7 {[%emt 0:00:17]} Nb6 {[%emt 0:00:07]} (23... Bg7 $142 24. Rxa7 Rd6) 24. Nxb6 {[%emt 0:03:15]} ({Weaker is} 24. Rxa7 Nxd5 25. Nc5 Bg7 $16) ({And not} 24. Rxe7 Nxa4 25. e4 Nc5 $11) 24... Rxb6 {[%emt 0:03:08]} 25. Rxe7 {[%emt 0:01:09]} Rxd5 {[%emt 0:00:11]} 26. Bc3 {[%emt 0:01:16]} ({Don't play} 26. Rxa7 Rxb2 27. Ra6+ Kf7 $18) 26... g3 $2 {[%emt 0:00:27]} (26... a5 27. Ke2 a4) 27. Rh3 {[%emt 0:01:17] White took control after the opening.  Weighted Error Value: White=0.08 (flawless) /Black=0.34} 1-0